bitfinex-derivatives/quotes_ETHF0:USTF0_20241129
["timestamp","ask_amount","ask_price","bid_price","bid_amount"]
[1732891069104,0.27626,3618.5,3617.8,0.8879]
[1732891069293,0.27627,3618.4,3618.2,0.27627]
[1732891069495,0.27626,3618.5,3618.2,0.27627]
[1732891069901,7.58215882,3618.6,3617.8,0.8879]
[1732891070199,7.90840882,3618.6,3618.2,0.27627]
[1732891070501,0.27626,3618.5,3618.2,0.27628]
[1732891070698,7.58215882,3618.6,3617.8,0.8879]
[1732891070908,7.74215882,3618.6,3617.9,0.2763]
[1732891071197,7.74215882,3618.6,3618.0,0.27629]
[1732891071406,0.27627,3618.4,3618.0,0.27629]
[1732891071698,0.27627,3618.4,3618.1,0.27628]
[1732891071699,0.08,3618.4,3618.1,0.27628]
[1732891072101,0.35627,3618.4,3618.0,0.27629]
[1732891072899,0.08,3618.4,3618.0,0.27629]
[1732891073297,0.27628,3618.3,3617.9,0.2763]
[1732891073606,0.01,3618.3,3617.6,3.2078]
[1732891073808,0.2763,3618.0,3617.6,4.1278]
[1732891074104,1.881,3617.9,3617.6,4.40412]
[1732891074501,1.881,3617.9,3617.6,4.1278]
[1732891074905,1.881,3617.9,3617.6,4.40412]
[1732891075995,1.881,3617.9,3617.6,4.1278]
[1732891076493,1.881,3617.9,3617.6,4.40412]
[1732891077001,1.881,3617.9,3617.6,0.92]
[1732891077002,0.27632,3617.7,3617.6,0.92]
[1732891077195,0.03,3617.7,3616.8,3.48418]
[1732891077401,0.27635,3617.3,3616.8,3.48418]
[1732891077700,7.61215882,3617.3,3616.9,0.27638]
[1732891078097,7.61215882,3617.3,3616.8,3.2078]
[1732891078297,7.58215882,3617.5,3617.1,0.27636]
[1732891078498,7.96848882,3617.5,3617.0,0.27637]
[1732891078699,7.69215882,3617.5,3616.8,3.2078]
[1732891078904,7.58215882,3617.4,3616.8,3.2078]
[1732891079095,0.03,3617.4,3617.3,0.27635]
[1732891079310,7.58215882,3617.6,3617.5,0.27633]
[1732891079504,6.51809611,3617.7,3617.6,0.27632]
[1732891079699,6.51809611,3618.0,3617.6,3.4578]
[1732891079998,7.41059611,3618.4,3617.9,2.0866559]
[1732891080203,7.41059611,3618.4,3618.3,3.2078]
[1732891080401,6.51809611,3618.4,3618.3,3.48407]
[1732891080601,7.58215882,3618.9,3618.8,0.27623]
[1732891080798,7.58215882,3619.1,3618.8,5.2944559]
[1732891081001,7.58215882,3619.8,3619.4,0.27619]
[1732891081199,0.27616,3619.8,3619.7,3.2078]
[1732891081400,18.14802001,3620.2,3619.3,3.2078]
[1732891081401,0.27617,3619.6,3619.3,3.2078]
[1732891081912,9.66881472,3620.2,3618.9,4.1527]
[1732891081913,0.27614,3620.0,3618.9,4.1527]
[1732891082104,0.8925,3619.5,3618.9,4.1527]
[1732891082308,0.8925,3619.5,3619.3,3.2078]
[1732891082505,0.27619,3619.4,3618.8,3.2078]
[1732891082707,0.9727,3619.4,3618.4,2.64521272]
[1732891083212,3.2078,3619.2,3618.4,2.64521272]
[1732891083411,0.8987,3619.1,3618.4,2.64521272]
[1732891083808,0.8987,3619.1,3618.4,2.92147272]
[1732891084109,4.1805,3619.4,3618.5,0.27625]
[1732891084321,4.1805,3619.4,3618.4,2.64521272]
[1732891084517,4.45669,3619.4,3618.4,2.92147272]
[1732891084816,0.9727,3619.4,3618.7,3.2078]
[1732891085213,0.8925,3619.5,3619.1,3.2078]
[1732891085514,2.0866559,3620.0,3619.1,3.2078]
[1732891085515,0.9233,3620.0,3619.1,3.2078]
[1732891085711,0.9233,3620.0,3619.6,3.2078]
[1732891086011,0.27615,3619.9,3619.6,3.2078]
[1732891086214,0.9233,3620.0,3619.6,3.2078]
[1732891086616,3.0099559,3620.0,3619.6,3.2078]
[1732891086813,0.9233,3620.0,3619.6,3.2078]
[1732891090514,1.19944,3620.0,3619.6,3.2078]
[1732891090713,3.2078,3619.9,3619.1,3.2078]
[1732891090913,0.27618,3619.5,3618.6,4.39605]
[1732891091111,3.2078,3619.5,3618.6,4.7498]
[1732891091417,3.2078,3619.5,3618.7,0.27624]
[1732891091715,3.2078,3619.5,3618.6,4.1198]
[1732891091917,0.27621,3619.2,3618.6,3.2078]
[1732891092121,0.9649,3619.1,3618.2,3.2078]
[1732891092316,1.9231,3619.1,3618.2,4.7978]
[1732891092513,0.27622,3619.0,3618.2,4.7978]
[1732891092713,5.40711,3619.1,3618.2,5.07407]
[1732891092921,5.1309,3619.1,3618.2,4.7978]
[1732891093519,0.27622,3619.0,3618.2,4.7978]
[1732891093815,5.1309,3619.1,3618.2,4.7978]
[1732891094122,3.2078,3618.7,3618.2,4.7978]
[1732891095021,0.27624,3618.8,3618.2,4.7978]
[1732891095216,0.31624,3618.8,3618.2,4.7978]
[1732891095720,0.04,3618.8,3618.2,4.7978]
[1732891095922,3.2078,3618.7,3617.5,3.2078]
[1732891096116,3.2078,3618.2,3617.5,3.2078]
[1732891096315,0.2763,3618.0,3617.5,3.2078]
[1732891096519,0.2763,3618.0,3617.2,0.9811]
[1732891096520,0.27632,3617.7,3617.2,0.9811]
[1732891096718,0.01,3618.0,3617.1,3.2078]
[1732891096719,0.27634,3617.4,3617.1,3.2078]
[1732891096919,0.27633,3617.6,3617.1,3.2078]
[1732891097212,0.27635,3617.3,3616.7,0.9811]
[1732891097411,0.8964,3617.2,3616.7,0.9811]
[1732891097613,3.2078,3617.9,3616.7,0.9811]
[1732891097815,0.94,3617.7,3617.0,3.2078]
[1732891098213,0.27635,3617.3,3616.7,1.25749]
[1732891098419,1.21632,3617.7,3617.0,0.27637]
[1732891098626,0.99,3617.7,3616.9,3.2078]
[1732891098917,2.63890913,3617.6,3616.7,0.9811]
[1732891099117,2.63890913,3617.6,3616.5,3.2078]
[1732891099118,3.2078,3617.5,3616.5,3.2078]
[1732891099422,1.21632,3617.7,3617.3,3.2078]
[1732891099616,0.94,3617.7,3617.3,3.2078]
[1732891099819,0.98,3617.7,3617.3,3.2078]
[1732891100510,0.94,3617.7,3617.3,3.2078]
[1732891100712,0.94,3617.7,3617.3,3.48414]
[1732891100929,0.94,3617.7,3617.3,3.2078]
[1732891101218,0.94,3617.7,3616.9,3.2078]
[1732891101421,1.21632,3617.7,3617.0,0.27636]
[1732891101620,0.94,3617.7,3616.9,3.2078]
[1732891102618,0.94,3617.7,3617.0,0.8922]
[1732891102922,0.94,3617.7,3617.6,0.27632]
[1732891103122,7.58215882,3618.6,3617.6,0.53]
[1732891103424,0.947,3618.6,3618.2,0.27628]
[1732891103623,0.947,3618.6,3618.0,3.2078]
[1732891103921,0.947,3618.6,3618.0,44.0078]
[1732891104219,0.947,3618.6,3618.3,0.27627]
[1732891104412,0.947,3618.6,3618.2,0.27628]
[1732891104611,0.947,3618.6,3618.0,3.2078]
[1732891104829,0.947,3618.6,3618.2,0.27628]
[1732891105118,0.947,3618.6,3618.0,3.2078]
[1732891105324,3.2078,3618.9,3618.0,3.2078]
[1732891105526,3.2478,3618.9,3618.0,5.7178]
[1732891105715,0.9103,3619.1,3618.5,3.2078]
[1732891105923,0.9103,3619.1,3618.4,3.2078]
[1732891106116,1.18652,3619.1,3618.6,0.27625]
[1732891106432,0.9103,3619.1,3618.8,3.2078]
[1732891106720,1.18652,3619.1,3618.8,3.2078]
[1732891106920,0.9103,3619.1,3618.4,3.2078]
[1732891107233,1.18651,3619.1,3618.6,0.27625]
[1732891107527,0.9103,3619.1,3618.4,3.2078]
[1732891107722,0.27623,3618.8,3618.4,3.2078]
[1732891108028,0.982,3619.0,3618.5,0.27625]
[1732891108621,0.982,3619.0,3618.4,3.2078]
[1732891108817,0.27624,3618.8,3618.4,3.2078]
[1732891109023,0.982,3619.0,3618.4,3.2078]
[1732891109221,3.2078,3618.7,3617.9,3.2078]
[1732891109425,6.59731913,3618.7,3617.9,3.2078]
[1732891109627,0.69063,3618.6,3617.9,3.2078]
[1732891109825,0.27629,3618.1,3617.9,3.2078]
[1732891110126,0.2763,3618.0,3617.4,4.1571]
[1732891110328,0.9477,3618.0,3617.5,0.27633]
[1732891111028,0.9477,3618.0,3617.4,4.1571]
[1732891111231,0.9477,3618.0,3617.4,3.2078]
[1732891111425,4.156,3617.9,3617.1,1.17356]
[1732891111626,4.156,3617.9,3617.1,2.3872]
[1732891111832,4.156,3617.9,3617.1,2.66356]
[1732891111833,0.27632,3617.7,3617.1,2.66356]
[1732891112030,0.27633,3617.6,3617.1,2.3872]
[1732891112530,0.9482,3617.9,3617.4,3.2078]
[1732891112726,0.9482,3617.9,3617.4,3.48414]
[1732891112932,0.9482,3617.9,3617.4,3.2078]
[1732891113130,5.34761,3617.9,3617.4,3.2078]
[1732891113425,0.9477,3618.0,3617.6,0.27632]
[1732891113627,0.9477,3618.0,3617.4,3.2078]
[1732891113830,0.9477,3618.0,3617.5,0.27633]
[1732891114030,0.9477,3618.0,3617.4,3.2078]
[1732891114531,0.27632,3617.7,3617.4,3.2078]
[1732891114734,0.27631,3617.8,3617.4,3.2078]
[1732891115229,0.9477,3618.0,3617.5,0.27633]
[1732891115736,0.9477,3618.0,3617.4,3.2078]
[1732891116327,0.9162,3618.4,3617.8,3.2078]
[1732891117040,4.124,3618.4,3617.4,3.2078]
[1732891117427,0.27632,3617.7,3617.1,1.17356]
[1732891117629,0.27629,3618.1,3617.5,0.27633]
[1732891117830,0.9162,3618.4,3617.7,3.48411]
[1732891118025,4.314,3618.4,3617.7,3.2078]
[1732891118233,4.314,3618.4,3617.3,3.2078]
[1732891118937,0.27632,3617.7,3617.3,3.2078]
[1732891119139,0.9108,3617.6,3617.3,3.2078]
[1732891119439,0.9108,3617.6,3616.9,4.1696]
[1732891119632,0.9108,3617.6,3616.9,4.44598]
[1732891119633,0.27633,3617.5,3616.9,4.44598]
[1732891119833,0.9108,3617.6,3617.2,0.27635]
[1732891120031,0.9108,3617.6,3616.9,4.1696]
[1732891120032,0.9108,3617.6,3617.3,0.27635]
[1732891120239,0.9108,3617.6,3617.2,0.27635]
[1732891120737,0.9108,3617.6,3616.9,4.1696]
[1732891121338,9.1386,3617.6,3616.5,3.2078]
[1732891121632,0.9643,3617.5,3616.8,0.27638]
[1732891121839,0.27635,3617.3,3616.7,0.27639]
[1732891122039,0.27634,3617.4,3616.5,3.2078]
[1732891122236,0.9643,3617.5,3616.5,3.2078]
[1732891122744,1.0343,3617.5,3616.5,3.2078]
[1732891123033,1.31064,3617.5,3616.9,0.27638]
[1732891123232,1.0343,3617.5,3616.5,3.2078]
[1732891123453,0.27636,3617.1,3616.6,0.2764]
[1732891124332,0.27637,3617.1,3616.6,0.2764]
[1732891124528,3.60320913,3617.5,3616.5,3.2078]
[1732891124738,0.27637,3617.1,3616.5,3.4842]
[1732891125134,0.27637,3617.1,3616.6,0.2764]
[1732891125335,3.60320913,3617.5,3616.6,0.2764]
[1732891125533,9.04320913,3617.5,3616.6,0.2764]
[1732891125733,0.27636,3617.2,3616.6,0.2764]
[1732891125939,0.9643,3617.5,3616.5,3.2078]
[1732891126238,0.27637,3617.1,3616.5,3.2078]
[1732891126437,2.72890913,3617.1,3616.5,3.2078]
[1732891126929,0.27639,3616.8,3616.5,3.2078]
[1732891127337,2.63890913,3617.1,3616.5,3.2078]
[1732891127543,0.2764,3616.7,3616.5,3.2078]
[1732891128137,2.63890913,3617.1,3616.5,3.2078]
[1732891128440,2.1413,3617.5,3617.0,0.27637]
[1732891128739,0.27637,3617.1,3616.6,2.1232]
[1732891129036,0.27637,3617.1,3616.6,1.8468]
[1732891129241,0.27634,3617.4,3616.8,0.27638]
[1732891129433,0.27634,3617.4,3616.6,1.8468]
[1732891129434,4.78020913,3617.5,3616.6,1.8468]
[1732891129634,4.78020913,3617.5,3616.6,2.1232]
[1732891129635,0.27636,3617.2,3616.6,2.1232]
[1732891129834,4.83020913,3617.5,3616.5,3.2078]
[1732891129835,5.84670913,3617.1,3616.5,3.2078]
[1732891130042,0.27638,3616.9,3616.5,3.2078]
[1732891130237,5.84670913,3617.1,3616.5,3.2078]
[1732891130434,0.2764,3616.6,3616.5,3.2078]
[1732891130635,0.9841,3616.8,3616.6,0.2764]
[1732891130837,1.161,3617.2,3616.5,3.2078]
[1732891131032,1.211,3617.2,3616.5,3.2078]
[1732891131239,0.05,3617.2,3616.5,3.2078]
[1732891131545,2.1451,3617.4,3616.5,3.2078]
[1732891131845,0.2764,3616.7,3616.5,3.2078]
[1732891132035,2.63890913,3617.1,3616.5,3.2078]
[1732891132238,0.2764,3616.7,3616.5,3.2078]
[1732891132638,5.84670913,3617.1,3616.5,3.2078]
[1732891132639,1.241,3616.6,3616.5,3.2078]
[1732891132835,0.9646,3616.6,3616.2,7.51408]
[1732891133036,3.48422,3616.3,3616.2,7.51408]
[1732891133437,0.27642,3616.3,3616.2,7.51408]
[1732891133643,3.48422,3616.3,3616.2,7.51408]
[1732891133843,0.27642,3616.3,3616.2,7.51408]
[1732891134234,11.12312913,3616.3,3616.2,7.51408]
[1732891134435,12.42312913,3616.3,3616.2,7.51408]
[1732891134744,7.46312913,3616.3,3616.2,4.52308]
[1732891135048,12.18670913,3616.3,3615.1,0.9224]
[1732891135244,3.2078,3615.6,3615.1,0.9224]
[1732891135545,2.63890913,3615.7,3615.1,0.9224]
[1732891135546,0.9889,3615.5,3615.1,0.9224]
[1732891135743,1.161,3615.7,3615.1,0.9224]
[1732891135942,0.27649,3615.5,3615.1,0.9224]
[1732891136147,0.9889,3615.6,3615.1,0.9224]
[1732891136644,0.2765,3615.3,3615.1,0.9224]
[1732891136843,0.27649,3615.5,3615.1,0.9224]
[1732891137641,3.79990913,3615.7,3615.1,0.9224]
[1732891137642,1.161,3615.7,3615.1,0.9224]
[1732891137943,0.27647,3615.8,3615.2,3.4843]
[1732891138143,1.161,3615.9,3615.2,3.2078]
[1732891138643,1.161,3615.9,3615.6,0.27648]
[1732891138844,4.3688,3616.2,3615.2,3.2078]
[1732891139048,3.2078,3616.2,3616.1,0.27644]
[1732891139244,2.9154838,3616.9,3616.0,3.2078]
[1732891139245,0.27657467,3616.9,3616.0,3.2078]
[1732891139550,1.43737,3617.1,3616.5,0.2764]
[1732891139752,0.27637,3617.0,3616.4,3.48421]
[1732891140050,0.27638,3617.0,3616.4,3.48421]
[1732891140246,0.27638,3617.0,3616.1,2.7981]
[1732891140247,3.2078,3616.9,3616.1,2.7981]
[1732891140451,3.48418,3616.9,3616.2,0.27643]
[1732891140748,0.27639,3616.8,3616.2,0.27643]
[1732891141342,3.2078,3617.0,3616.1,2.7981]
[1732891141546,0.2764,3616.7,3616.1,3.07454]
[1732891141752,3.2078,3617.0,3616.1,3.07454]
[1732891141753,0.2764,3616.6,3616.1,2.7981]
[1732891141939,3.2078,3617.0,3616.1,2.7981]
[1732891141940,1.161,3617.0,3616.1,2.7981]
[1732891142146,0.2764,3616.7,3616.1,3.07454]
[1732891142342,4.61450913,3617.2,3616.1,3.07454]
[1732891142343,0.27639,3616.8,3616.2,0.27643]
[1732891142550,1.161,3616.9,3616.1,2.7981]
[1732891142748,0.27641,3616.6,3616.1,2.7981]
[1732891142954,0.2764,3616.7,3616.1,3.07453]
[1732891143148,0.2764,3616.7,3616.1,3.07454]
[1732891143348,1.161,3616.8,3616.2,0.27643]
[1732891143652,1.161,3616.8,3616.1,2.7981]
[1732891143952,0.27671166,3617.0,3616.5,3.2078]
[1732891144150,0.30671166,3617.0,3616.5,3.48421]
[1732891144350,0.58308166,3617.0,3616.5,3.2078]
[1732891144649,0.30671166,3617.0,3616.5,3.2078]
[1732891144845,3.48418,3616.9,3616.3,0.27642]
[1732891145050,4.0078,3616.9,3616.1,6.0059]
[1732891145251,0.27639,3616.8,3616.1,6.0059]
[1732891145441,0.27639,3616.8,3616.2,0.27643]
[1732891145650,3.2078,3616.9,3616.1,6.0059]
[1732891145848,2.63890913,3616.8,3616.1,4.1603]
[1732891146042,1.161,3616.7,3616.1,4.1603]
[1732891146245,3.71,3616.7,3616.1,4.1603]
[1732891146554,3.71,3616.7,3616.3,0.27642]
[1732891146756,3.71,3616.7,3616.2,1.9044]
[1732891146951,0.27671166,3617.0,3616.5,3.4842]
[1732891147157,0.27671166,3617.0,3616.9,3.2078]
[1732891147158,0.49671166,3617.0,3616.9,3.2078]
[1732891147350,0.27671166,3617.0,3616.9,3.2078]
[1732891147548,0.28671166,3617.0,3616.9,3.2078]
[1732891147749,0.28671166,3617.0,3616.5,3.2078]
[1732891147952,0.28671166,3617.0,3616.6,0.2764]
[1732891148150,0.28671166,3617.0,3616.5,3.2078]
[1732891149150,0.28671166,3617.0,3616.6,0.2764]
[1732891149354,0.28671166,3617.0,3616.5,3.2078]
[1732891149856,0.27671166,3617.0,3616.5,3.2078]
[1732891150151,0.28671166,3617.0,3616.5,3.2078]
[1732891150356,0.28671166,3617.0,3616.7,0.27639]
[1732891150756,0.28671166,3617.0,3616.5,3.2078]
[1732891150957,0.28671166,3617.0,3616.7,0.27639]
[1732891151153,0.28671166,3617.0,3616.8,0.27638]
[1732891151556,0.28671166,3617.0,3616.7,0.27639]
[1732891151755,0.28671166,3617.0,3616.5,3.2078]
[1732891151951,0.28671166,3617.0,3616.8,0.27638]
[1732891152460,0.28671166,3617.0,3616.9,0.27638]
[1732891152656,0.28671166,3617.0,3616.5,3.2078]
[1732891152657,0.28671166,3617.0,3616.8,0.27638]
[1732891152859,0.28671166,3617.0,3616.5,3.2078]
[1732891153158,0.28671166,3617.0,3616.7,0.27639]
[1732891153365,0.28671166,3617.0,3616.5,3.2078]
[1732891153366,0.28671166,3617.0,3616.8,0.27639]
[1732891153950,0.28671166,3617.0,3616.9,0.27638]
[1732891154157,0.28671166,3617.0,3616.5,3.2078]
[1732891154349,0.28671166,3617.0,3616.6,0.2764]
[1732891154550,0.28671166,3617.0,3616.5,3.2078]
[1732891154754,0.28671166,3617.0,3616.8,0.27639]
[1732891155150,0.28671166,3617.0,3616.9,0.27638]
[1732891155358,3.79990913,3617.5,3617.1,0.27636]
[1732891155561,4.16990913,3617.5,3617.0,0.27636]
[1732891155759,7.37770913,3617.5,3617.0,0.9616]
[1732891156059,5.84670913,3617.1,3616.5,3.2078]
[1732891156258,3.41890913,3617.1,3616.5,3.2078]
[1732891156465,0.78,3617.1,3616.6,0.2764]
[1732891156657,0.78,3617.1,3616.9,0.27637]
[1732891156955,1.161,3617.2,3616.5,3.2078]
[1732891156956,1.161,3617.2,3616.8,0.27638]
[1732891157160,1.161,3617.2,3616.8,0.27639]
[1732891157161,1.251,3617.2,3616.8,0.27639]
[1732891157559,0.09,3617.2,3616.8,0.27639]
[1732891157756,0.09,3617.2,3616.5,3.2078]
[1732891157952,7.58215882,3617.5,3616.9,3.2078]
[1732891158156,7.58215882,3617.5,3616.7,0.69099]
[1732891158157,1.9207,3617.7,3617.4,3.2078]
[1732891158361,2.0307,3617.7,3617.4,3.48414]
[1732891158661,2.0307,3617.7,3617.4,3.2078]
[1732891158958,2.30702,3617.7,3617.0,2.8219]
[1732891159163,2.0307,3617.7,3617.1,0.27636]
[1732891159361,2.30702,3617.7,3617.2,0.27635]
[1732891159659,0.27634,3617.5,3617.0,2.8219]
[1732891159964,0.27634,3617.5,3616.9,3.48418]
[1732891159965,0.27636,3617.1,3616.9,3.2078]
[1732891160161,0.27637,3617.1,3616.9,3.2078]
[1732891160363,7.57969469,3617.6,3616.9,3.2078]
[1732891160557,0.002,3617.7,3617.6,0.27632]
[1732891161050,0.23120033,3618.0,3617.3,3.2078]
[1732891161051,0.002,3617.8,3617.4,1.8569]
[1732891161258,0.002,3617.8,3617.7,0.27632]
[1732891161656,0.002,3617.8,3617.7,3.48412]
[1732891161856,7.57969469,3618.7,3617.7,3.2078]
[1732891162060,12.14924117,3619.3,3618.6,3.2078]
[1732891162358,12.14924117,3619.3,3618.8,0.27623]
[1732891162359,4.56954648,3619.3,3618.8,0.27623]
[1732891162559,3.40654648,3619.3,3618.9,0.27622]
[1732891162764,3.40654648,3619.3,3619.0,0.27621]
[1732891162765,3.38654648,3619.3,3619.0,0.27621]
[1732891163069,0.27658309,3619.5,3619.0,3.48401]
[1732891163764,0.27658309,3619.5,3619.1,0.27621]
[1732891164159,0.9762,3619.8,3619.0,3.2078]
[1732891164362,0.89,3619.8,3619.4,3.2078]
[1732891164558,0.27658308,3620.3,3619.8,0.27616]
[1732891164751,0.68658308,3620.3,3619.5,0.8974]
[1732891165057,0.27658308,3620.3,3619.9,3.48395]
[1732891165259,0.27658308,3620.3,3619.9,3.2078]
[1732891165560,1.183,3620.4,3619.9,3.2078]
[1732891166062,1.183,3620.4,3620.3,3.2078]
[1732891166559,0.00525551,3620.5,3620.3,3.2078]
[1732891166760,0.00525551,3620.5,3620.4,0.27611]
[1732891166958,50.0,3621.0,3620.3,3.2078]
[1732891167256,50.0,3621.0,3619.9,43.43890913]
[1732891167257,50.0,3621.0,3620.7,3.48388]
[1732891167657,50.0,3621.0,3620.7,3.2078]
[1732891167851,50.0,3621.0,3620.8,1.8984]
[1732891170162,50.0,3621.0,3620.8,5.1062]
[1732891171062,50.27607,3621.0,3620.8,5.1062]
[1732891171365,50.0,3621.0,3620.8,4.1803]
[1732891171963,47.54525551,3621.0,3620.8,4.1803]
[1732891172160,47.54525551,3621.0,3620.9,2.17257]
[1732891172361,47.54525551,3621.0,3620.9,1.8965]
[1732891172968,47.54525551,3621.0,3620.9,2.17257]
[1732891173464,47.54525551,3621.0,3620.9,1.8965]
[1732891174067,47.54525551,3621.0,3620.9,2.17257]
[1732891174364,47.54725551,3621.0,3620.9,2.17257]
[1732891177866,47.82332551,3621.0,3620.9,1.8965]
[1732891178472,47.54725551,3621.0,3620.9,2.17257]
[1732891181769,47.54725551,3621.0,3620.9,1.8965]
[1732891181966,0.27607,3620.9,3620.8,3.2078]
[1732891182167,0.01,3620.9,3620.3,3.2078]
[1732891182368,0.9851,3620.8,3620.3,3.2078]
[1732891183272,0.9851,3620.8,3620.3,3.48392]
[1732891183474,0.9851,3620.8,3620.3,3.2078]
[1732891183778,0.27609,3620.7,3620.3,3.2078]
[1732891183967,0.9851,3620.8,3620.4,0.27611]
[1732891184472,0.9851,3620.8,3620.3,3.2078]
[1732891184771,0.9851,3620.8,3620.7,3.2078]
[1732891185671,0.9951,3620.8,3620.3,3.2078]
[1732891186067,0.27609,3620.7,3620.3,3.2078]
[1732891186376,0.01,3620.7,3620.3,3.48391]
[1732891186576,0.27609,3620.7,3620.3,3.2078]
[1732891186869,4.1929,3620.8,3620.3,3.2078]
[1732891187071,0.2761,3620.6,3620.3,3.2078]
[1732891187268,4.1929,3620.8,3620.3,3.2078]
[1732891187573,9.75435054,3620.8,3619.8,3.2078]
[1732891187774,0.27615,3620.0,3619.3,3.48399]
[1732891187975,1.8443,3619.9,3619.4,0.27619]
[1732891188276,1.22249282,3619.9,3619.4,4.47398]
[1732891188677,1.22249282,3619.9,3619.5,0.27618]
[1732891188975,1.22249282,3619.9,3619.8,3.2078]
[1732891189870,3.9699,3620.7,3619.8,3.2078]
[1732891190069,0.9153,3620.6,3620.2,0.27612]
[1732891190275,1.1253,3620.6,3620.0,0.27613]
[1732891190475,1.1253,3620.6,3619.8,3.2078]
[1732891190678,1.1253,3620.6,3620.0,0.27614]
[1732891190872,1.1253,3620.6,3619.8,3.2078]
[1732891191279,1.1253,3620.6,3620.1,0.27613]
[1732891191481,0.9467,3620.5,3620.1,0.27613]
[1732891191676,1.0367,3620.5,3620.0,0.27614]
[1732891191977,1.0367,3620.5,3620.2,0.27612]
[1732891192185,1.0367,3620.5,3619.8,3.2078]
[1732891192378,0.08317926,3620.5,3620.4,0.27611]
[1732891192574,0.9153,3620.6,3620.2,3.2078]
[1732891192878,0.9153,3620.6,3620.5,0.2761]
[1732891193880,47.54525551,3621.0,3620.5,0.2761]
[1732891194088,0.9664,3620.9,3620.4,0.27611]
[1732891194385,0.9664,3620.9,3620.5,0.2761]
[1732891194674,0.9664,3620.9,3620.2,3.2078]
[1732891195276,0.9664,3620.9,3620.5,0.2761]
[1732891195575,0.9664,3620.9,3620.3,0.27612]
[1732891195774,0.9664,3620.9,3620.2,3.2078]
[1732891196179,0.9664,3620.9,3620.4,0.27611]
[1732891196385,0.9664,3620.9,3620.5,0.2761]
[1732891196675,0.9664,3620.9,3620.4,0.2761]
[1732891197068,0.9664,3620.9,3620.5,0.2761]
[1732891197874,0.9664,3620.9,3620.2,3.2078]
[1732891198071,0.9664,3620.9,3620.5,0.2761]
[1732891198280,0.9664,3620.9,3620.2,3.2078]
[1732891198474,1.29247,3620.9,3620.3,0.27611]
[1732891198678,1.0164,3620.9,3620.4,0.27611]
[1732891199178,1.0164,3620.9,3620.2,3.2078]
[1732891199374,48.51205551,3621.0,3619.9,0.9293]
[1732891199375,47.54525551,3621.0,3620.8,0.27608]
[1732891199681,47.54525551,3621.0,3620.6,3.2078]
[1732891199682,0.27624,3618.8,3618.0,0.27629]
[1732891199981,0.27624,3618.8,3617.7,3.2078]
[1732891199982,3.2078,3618.7,3617.7,3.2078]
[1732891200283,3.77404,3618.7,3617.6,3.2078]
[1732891200484,0.9067,3618.6,3617.3,0.9591]
[1732891200681,3.2078,3618.3,3617.3,0.9591]
[1732891200875,3.2078,3618.3,3617.8,0.27631]
[1732891201179,3.2078,3618.4,3617.7,3.2078]
[1732891201381,3.2078,3618.4,3618.0,0.27629]
[1732891201882,3.2078,3618.4,3617.8,0.2763]
[1732891202082,3.2078,3618.4,3617.9,0.2763]
[1732891202586,3.2078,3618.4,3618.0,0.27629]
[1732891202884,3.2078,3618.4,3618.1,0.27628]
[1732891203082,3.2078,3618.8,3617.7,8.2078]
[1732891203384,3.2078,3618.8,3618.1,3.2078]
[1732891203580,3.2078,3618.8,3618.5,0.27625]
[1732891203784,3.2078,3618.8,3618.6,0.27625]
[1732891204085,3.2078,3618.8,3618.6,0.04]
[1732891204282,3.2078,3619.2,3618.6,0.04]
[1732891204481,3.2078,3619.2,3618.8,0.27623]
[1732891204689,3.2078,3619.2,3618.2,2.8679]
[1732891204690,3.2078,3619.2,3618.9,0.27622]
[1732891204986,3.2078,3619.2,3618.2,7.8679]
[1732891205281,3.2078,3618.8,3618.6,0.27624]
[1732891205474,3.2078,3618.8,3618.3,40.8]
[1732891205679,3.2078,3618.8,3618.3,45.8]
[1732891206581,3.2078,3618.8,3618.4,0.27626]
[1732891206783,0.27623,3618.9,3618.5,0.27626]
[1732891206984,3.48401,3619.2,3618.9,0.27622]
[1732891207184,3.48401,3619.2,3619.0,0.27621]
[1732891207486,0.27624,3618.8,3618.6,0.27624]
[1732891207684,0.27624,3618.7,3618.5,0.27625]
[1732891207983,3.2078,3618.8,3618.2,2.8679]
[1732891208387,3.48404,3618.8,3618.2,2.8679]
[1732891208592,3.2078,3618.8,3618.2,2.8679]
[1732891208889,0.27625,3618.6,3618.3,0.27627]
[1732891209189,3.2078,3618.8,3618.2,2.8679]
[1732891209387,0.27626,3618.4,3618.2,3.14418]
[1732891209684,3.2078,3618.8,3618.2,2.8679]
[1732891209885,0.27625,3618.6,3618.3,0.27627]
[1732891210092,3.2078,3618.8,3618.2,2.8679]
[1732891210285,0.27624,3618.7,3618.4,0.27626]
[1732891210591,3.2078,3618.8,3618.2,2.8679]
[1732891210783,3.48404,3618.8,3618.5,0.27625]
[1732891210990,3.48404,3618.8,3618.4,0.27626]
[1732891210991,0.27624,3618.7,3618.4,0.27626]
[1732891211389,3.2078,3618.8,3618.4,0.27626]
[1732891211587,0.27625,3618.7,3618.4,0.27626]
[1732891211794,3.2078,3618.8,3618.2,2.8679]
[1732891212087,3.2078,3618.8,3618.7,0.27624]
[1732891212289,3.2078,3619.4,3618.3,3.2078]
[1732891212483,3.2078,3619.4,3619.2,0.2762]
[1732891212685,3.2078,3619.4,3618.8,3.2078]
[1732891212984,3.2078,3619.4,3618.6,40.8]
[1732891213290,3.2078,3619.4,3618.6,42.12]
[1732891213496,0.2762,3619.3,3619.1,0.27621]
[1732891213683,3.2078,3619.4,3618.5,0.69064]